Cogmind - Beta 17.1 *** ADVENTURER MODE // 2026.09.17 @ 23:54:46 Player: deadbabe Result: Destroyed by C-35 Carver with Carbide Saw Performance ------------- Evolutions (5) 2500 Regions Visited (13) 2600 Robots Destroyed (170) 850 Value Destroyed (7317) 7317 Prototype IDs (22) 440 Alien Tech Used (0) 0 Bonus (2796) 2796 TOTAL SCORE: 16503 Bonus ------- High Alert Combat Kills 214 Follower Combat Kills 482 Entered Garrisons 600 Used RIF Installer 1500 Cogmind --------- Core Integrity 0/1000 Matter 300/300 Energy 100/100 System Corruption 6% Temperature Cool (0) Movement Core (50) Location -5/Garrison Parts ------- > --- POWER (1) -------- (None) > --- PROPULSION (4) --- (None) > --- UTILITY (8) ------ (None) > --- WEAPON (4) ------- (None) > --- INVENTORY (5) ---- Cold Fusion Reactor High-powered Tractor Beam Improved Remote Datajack Improved Remote Datajack Peak State ------------ > --- POWER ------------ Cold Fusion Reactor > --- PROPULSION ------- Medium Treads Medium Treads Medium Treads Medium Treads > --- UTILITY ---------- Advanced Heat Sink Large Storage Unit Energy Well Advanced Weight Redist. System IFF Parser Improved Heavy Armor Plating Improved Recalibrator > --- WEAPON ----------- Enhanced Gauss Cannon Enhanced Gauss Cannon Enhanced Gauss Cannon Shock Maul > --- INVENTORY -------- Light Angular Momentum Engine Cold Fusion Reactor Medium Treads Carbon-fiber Leg Carbon-fiber Leg Advanced Terrain Scan Processor Improved Force Field Relay Coupler [Hunter] Relay Coupler [Hunter] High-powered Tractor Beam Drone Bay Heavy Laser Wave Gun Improved Remote Datajack Improved Remote Datajack [Rating: 88] Favorites ----------- Power Light Nuclear Core Engine Improved Ion Engine Power Core Light Nuclear Core Reactor Cold Fusion Reactor Propulsion Carbon-fiber Leg Treads Medium Treads Leg Carbon-fiber Leg Flight Unit Flight Unit Utility Improved Targeting Computer Device Seismic Detector Storage Large Storage Unit Processor Improved Targeting Computer Hackware Relay Coupler [NC] Protection Improved Light Armor Plating Weapon Gauss Rifle Energy Gun Thermic Laser Energy Cannon Heavy Particle Cannon Ballistic Gun Gauss Rifle Ballistic Cannon Enhanced Gauss Cannon Launcher Subdweller Shrapnel Launcher Special Weapon Remote Datajack Impact Weapon Great Maul Slashing Weapon Axe Piercing Weapon Makeshift Spear Build | -11 -10 -10 -10 -8 -7 -7 -7 -7 -6 -6 -6 -5 -5 ------- Run | Yrd Mat Min Sub Mat Fac Gar Fac Gar Fac Low Low Fac Gar Slots Evolved 10 | . . . . 4 2 . . . 2 . . 2 . Power . | . . . . . . . . . . . . . . Propulsion 2 | . . . . 1 1 . . . . . . . . Utility 6 | . . . . 2 1 . . . 2 . . 1 . Weapon 2 | . . . . 1 . . . . . . . 1 . Parts Attached 137 | 7 3 4 7 24 11 9 7 13 13 9 4 19 7 Power 12 | 1 . 1 1 2 . 1 . 1 1 2 . 2 . Engine 4 | 1 . 1 1 . . . . . . . . 1 . Core 7 | . . . . 2 . 1 . 1 1 2 . . . Reactor 1 | . . . . . . . . . . . . 1 . Propulsion 36 | 2 2 . . 6 3 . 3 2 4 4 1 4 5 Treads 11 | . . . . 5 . . . . . . 1 4 1 Leg 23 | 2 . . . 1 3 . 3 2 4 4 . . 4 Wheel . | . . . . . . . . . . . . . . Hover . | . . . . . . . . . . . . . . Flight 2 | . 2 . . . . . . . . . . . . Utility 41 | 2 . 1 2 7 5 5 1 3 4 1 2 6 2 Device 17 | 1 . 1 1 2 2 1 . 2 1 . . 4 2 Storage 7 | 1 . . 1 1 . . 1 . . . 2 1 . Processor 3 | . . . . 2 1 . . . . . . . . Hackware 6 | . . . . . 1 2 . 1 2 . . . . Protection 8 | . . . . 2 1 2 . . 1 1 . 1 . Artifact . | . . . . . . . . . . . . . . Weapon 48 | 2 1 2 4 9 3 3 3 7 4 2 1 7 . Energy Gun 9 | . . . . 3 . 1 . 2 1 . 1 1 . Energy Cannon 2 | . . . . 1 . . . . . 1 . . . Ballistic Gun 20 | 2 1 1 1 4 3 1 2 2 3 . . . . Ballistic Cannon 5 | . . . . . . 1 . 1 . . . 3 . Launcher 3 | . . . 2 1 . . . . . . . . . Special Weapon 3 | . . . . . . . . 2 . . . 1 . Impact Weapon 2 | . . . . . . . . . . 1 . 1 . Slashing Weapon 3 | . . 1 . . . . 1 . . . . 1 . Piercing Weapon 1 | . . . 1 . . . . . . . . . . Special Melee Weapon . | . . . . . . . . . . . . . . Unidentified Prototypes 8 | . . . . 3 . 1 1 . 1 . . 2 . Parts Lost 52 | . . . 3 1 . 3 1 2 4 19 5 . 14 Power 7 | . . . . . . . 1 1 2 2 . . 1 Propulsion 16 | . . . 1 . . . . . 2 8 . . 5 Utility 15 | . . . 1 1 . 3 . 1 . 2 2 . 5 Weapon 14 | . . . 1 . . . . . . 7 3 . 3 Highest Loss Streak 8 | . . . 1 1 . 2 1 2 1 8 5 . 8 To Critical Strikes . | . . . . . . . . . . . . . . Average Backups 13 | 1 4 6 8 11 14 14 17 19 19 16 13 12 13 Power . | . 1 1 1 1 1 . 1 1 . . . 1 1 Propulsion 1 | . . . . 1 2 3 3 3 2 . . 2 2 Utility 6 | . . 1 2 3 3 4 9 10 11 12 11 5 5 Weapon 4 | . 2 4 4 5 7 5 3 3 3 2 . 2 1 Tool/Special . | . . . . . . . . . . . . . . Unused Backups 38 | . 1 1 1 3 3 7 1 7 1 . 6 1 6 Power 5 | . . . . 1 1 1 . . . . . . 2 Propulsion 9 | . . . . . . 4 . 5 . . . . . Utility 11 | . 1 . . . . . . 1 . . 6 . 3 Weapon 11 | . . 1 1 2 2 2 1 . 1 . . 1 . Tool/Special 2 | . . . . . . . . 1 . . . . 1 Average Slot Usage (%) 84 | . 98 100 83 88 91 87 91 91 87 76 39 80 74 Engine 3 | . 14 14 14 1 . . . . . . . . . Core 3 | . . . . 7 6 6 6 6 5 3 . . . Treads 4 | . . . . 8 12 . . . . . . 20 14 Leg 14 | . 25 28 17 11 9 20 21 20 17 17 . . 3 Device 11 | . 14 14 13 14 10 8 . 7 12 13 10 17 18 Storage 9 | . 14 14 14 9 6 6 7 7 6 6 5 11 9 Processor 6 | . . . . 7 10 13 14 14 11 6 4 . . Hackware 4 | . . . . . 5 4 14 11 7 10 4 . . Protection 2 | . . . . 1 6 4 6 1 5 1 . 4 2 Energy Gun 2 | . . . . 8 3 3 1 8 2 . . . . Ballistic Gun 11 | . 28 26 13 15 13 15 16 6 13 8 4 . . Ballistic Cannon 1 | . . . . . . . . . . . . 12 11 Launcher 1 | . . . 7 . . . . . . . . . . Slashing Weapon 2 | . . 1 3 . . . 1 1 . 4 4 4 4 Peak Build Rating 88 | 7 7 8 13 28 59 67 60 62 74 56 29 88 87 Average Rating 39 | 5 6 7 10 23 43 59 59 60 64 42 22 70 66 On Entrance 33 | . 7 7 8 11 25 59 59 60 62 48 25 12 85 Avg Prop Armor Cover (%) 5 | . . . . 5 . . . . . 4 . 7 . Naked Turns 87 | . . . . . . . . . . . 37 . 50 Heaviest Build 97 | 12 13 13 91 97 48 56 68 67 74 74 55 84 95 Greatest Support 112 | 20 20 20 20 60 90 90 90 95 95 65 28 112 112 Greatest Overweight (x) 18 | . 3 . 9 9 1 . . . 1 16 18 1 2 Average Overweight (x) . | . . . 1 1 . . . . . 1 5 . . Largest Inventory Capacity 25 | 8 8 8 25 25 15 15 20 20 20 20 20 15 15 Average Capacity 16 | 7 8 8 12 18 15 15 19 20 20 20 17 15 13 Most Carried 20 | 4 7 8 11 15 15 15 20 20 20 20 15 15 15 Average Carried 13 | 1 4 6 8 12 14 14 17 19 19 16 13 12 13 Final Capacity 25 | 8 8 8 25 15 15 15 20 20 20 20 15 15 5 Final Carried 20 | 2 7 8 11 15 15 15 20 20 19 15 5 15 4 Class Distribution -------------------- 35% | Mutant 15% | Scavenger-Gunner 10% | Bothacker-Mutant 10% | Bothacker-Gunner 7% | Hacker-Gunner 7% | Tank 6% | Gunner Dominant Class ---------------- Mutant | -10/Materials Mutant | -10/Mines Mutant | -10/Subcaves Scavenger-Gunner | -8/Materials Hacker-Gunner | -7/Factory Hacker-Gunner | -7/Garrison Mutant | -7/Factory Bothacker-Gunner | -7/Garrison Bothacker-Gunner | -6/Factory Bothacker-Mutant | -6/Lower Caves Bothacker-Mutant | -6/Lower Caves Tank | -5/Factory Tank | -5/Garrison Resources | -11 -10 -10 -10 -8 -7 -7 -7 -7 -6 -6 -6 -5 -5 ----------- Run | Yrd Mat Min Sub Mat Fac Gar Fac Gar Fac Low Low Fac Gar Matter Collected 5634 | 193 66 83 423 517 181 940 490 602 247 471 50 821 550 Remotely 56 | . . . . . . . . . . . . . 56 Salvage Created 6722 | 39 92 12 290 641 296 923 731 830 749 433 135 1147 404 Parts 349 | 4 12 . 15 58 23 52 31 33 43 8 . 48 22 Haulers Intercepted 3 | . . . . . . . . . 1 . . 2 . Recyclers Shooed 4 | 1 . . . . 1 . . . 2 . . . . Parts Field Recycled . | . . . . . . . . . . . . . . Retrieved Matter . | . . . . . . . . . . . . . . Parts Self-Destructed 14 | . . . 10 . . . . . . 4 . . . Prevented 4 | . . . . . . . . . . 4 . . . Parts Restored . | . . . . . . . . . . . . . . Kills | -11 -10 -10 -10 -8 -7 -7 -7 -7 -6 -6 -6 -5 -5 ------- Run | Yrd Mat Min Sub Mat Fac Gar Fac Gar Fac Low Low Fac Gar Combat Hostiles Destroyed 136 | . 6 1 9 17 5 23 11 19 9 7 . 16 13 Melee 12 | . . . . . . . 2 . . 5 . 1 4 Guns 85 | . 6 1 3 14 3 22 9 15 9 2 . . 1 Cannons 31 | . . . . 3 2 1 . 2 . . . 15 8 AOE 7 | . . . 6 . . . . 1 . . . . . Classes Destroyed 20 | 1 1 1 2 5 1 1 2 2 2 . . . 2 Worker 9 | . . . . 2 . . . . 5 . . 2 . Builder 4 | . . . . . . . . . 2 . . 2 . Tunneler 4 | 2 . . . . . . . . . . . 2 . Hauler 3 | . . . . . . . . . 1 . . 2 . Recycler 6 | . . . . . . . 3 . . . . 3 . Mechanic 1 | . . . . . . . 1 . . . . . . Operator 2 | . . . . 1 1 . . . . . . . . Watcher 6 | . . . . 3 1 . 1 . 1 . . . . Swarmer 33 | . 6 . . 10 . 3 3 . 2 1 . 5 3 Cutter 1 | . . . . . . . . . . . . . 1 Grunt 48 | . . . 2 . . 14 1 9 3 5 . 8 6 Brawler 1 | . . . . . . . . 1 . . . . . Duelist 1 | . . . . . . . . 1 . . . . . Sentry 16 | . . . . 5 2 2 3 2 1 1 . . . Specialist 3 | . . . . . . 1 . . 2 . . . . Hunter 6 | . . . . 2 . . 2 1 . . . 1 . Programmer 18 | . . . . . 3 3 2 5 1 . . 2 2 Behemoth 1 | . . . . . . . . . . . . . 1 Subdweller 7 | . . . 7 . . . . . . . . . . Assembled 1 | . . 1 . . . . . . . . . . . Best Kill Streak 10 | 1 6 1 2 4 1 4 3 5 8 2 . 10 6 Combat Bots Only 6 | . 6 1 2 4 1 4 3 5 4 2 . 5 6 Max Kills in Single Turn 3 | 1 1 1 2 2 1 2 1 1 3 1 . 2 3 Gunslinging 1 | . . . . 1 . 1 . . . . . . . Exploded 2 | . . . 2 . . . . 1 . . . . . Melee 1 | . . . . . . . 1 . . 1 . 1 1 Uniques/NPCs Destroyed . | . . . . . . . . . . . . . . Combat | -11 -10 -10 -10 -8 -7 -7 -7 -7 -6 -6 -6 -5 -5 -------- Run | Yrd Mat Min Sub Mat Fac Gar Fac Gar Fac Low Low Fac Gar Hostile Shots Fired 1455 | . 39 3 38 87 87 112 144 191 193 199 42 85 235 Missed 475 | . 14 2 7 25 28 47 56 76 68 64 9 28 51 Hits 980 | . 25 1 31 62 59 65 88 115 125 135 33 57 184 Melee 49 | . . . . . . . . . . . . . 49 Projectile 931 | . 25 1 31 62 59 65 88 115 125 135 33 57 135 AOE 1 | . . . . . . . . . . . . . 1 Critical Strikes 46 | . 1 . . 2 1 . . . 2 4 5 4 27 Part Disruptions 2 | . . . . . . . . . 2 . . . . Actively Blocked 1 | . . . . . . . . . 1 . . . . Damage Taken 10911 | . 142 10 504 463 354 728 657 1005 1144 1659 481 744 3020 Core 2335 | . 26 10 129 125 21 62 92 105 143 372 238 39 973 Absorbed by Shields 310 | . . . . 108 . . . . 45 . . . 157 Redirected to Shielding 152 | . . . . . . . . . 126 26 . . . Ignored by Resistances 3211 | . 50 3 122 168 121 214 199 304 354 468 139 212 857 Regen/Repaired (Parts) 266 | . . . . . 158 . 108 . . . . . . Core Remaining (%) 56 | 100 . . 34 77 . . . 60 . . 11 . . Volleys Fired 392 | 8 11 2 25 40 18 58 38 62 42 21 3 30 34 Largest 3 | 2 2 2 2 3 3 3 3 3 3 2 1 3 3 Hottest 170 | 40 40 40 48 151 151 136 78 170 145 94 30 141 141 Shots Fired 891 | 16 22 4 33 104 54 174 72 117 93 33 4 86 79 Gun 647 | 16 22 4 21 92 46 162 72 98 82 21 4 . 7 Cannon 204 | . . . . 12 8 12 . 8 . 8 . 84 72 Launcher 12 | . . . 12 . . . . . . . . . . Special 28 | . . . . . . . . 11 11 4 . 2 . Kinetic 720 | 16 22 4 26 60 38 166 72 66 72 18 4 84 72 Thermal 117 | . . . . 44 16 8 . 40 2 . . . 7 Explosive 7 | . . . 7 . . . . . . . . . . Electromagnetic 19 | . . . . . . . . . 8 11 . . . Robot Hit Streak 41 | 6 7 2 14 17 20 17 20 41 20 27 15 18 8 Robot Miss Streak 6 | 1 2 1 2 4 1 6 4 3 2 3 . 2 2 Penetration Max 1 | . . . . . . 1 . . 1 . . 1 1 Secondary Targets 16 | . 3 . . 4 . 4 . 1 4 . . . . Max Gunslinging Chain 2 | . 1 . . 2 . 1 . 1 1 . . . . Shots Hit Robots 708 | 12 15 3 18 68 44 112 65 99 80 44 8 74 66 Core Hits 371 | 4 6 2 17 30 14 77 50 46 38 16 1 50 20 Critical Kills 1 | . . . . 1 . . . . . . . . . Critical Parts Destroyed 6 | . . . . 1 1 1 . 2 1 . . . . Critical Strikes 46 | . . . . 2 2 1 4 7 1 2 . 18 9 Burn 5 | . . . . . 1 . . 4 . . . . . Destroy 7 | . . . . 2 1 1 . 2 1 . . . . Blast 19 | . . . . . . . . 1 . . . 11 7 Corrupt 1 | . . . . . . . . . . 1 . . . Sever 14 | . . . . . . . 4 . . 1 . 7 2 Melee Attacks 101 | . . 9 9 1 . 3 13 1 . 19 5 23 18 Impact 5 | . . . . . . . . . . 3 2 . . Slashing 86 | . . 9 8 . . . 8 1 . 16 3 23 18 Piercing 10 | . . . 1 1 . 3 5 . . . . . . Sneak Attacks 13 | . . 1 . . . . 5 . . . . 7 . Combat Hostiles 1 | . . . . . . . 1 . . . . . . Follow-up Attacks 3 | . . . . . . . . . . 3 . . . Damage Inflicted 18382 | 128 151 69 853 1217 746 2221 1599 1929 2414 1208 352 3123 2372 Guns 9105 | 128 151 25 269 917 547 2140 1015 1667 1683 385 85 . 93 Cannons 4715 | . . . . 300 199 81 . 262 . 183 . 1959 1731 Explosions 1535 | . . . 584 . . . . . 731 . . 220 . Melee 2945 | . . 44 . . . . 584 . . 640 267 944 466 Ramming 82 | . . . . . . . . . . . . . 82 Kinetic 11727 | 128 151 25 418 425 454 2111 1015 1335 1551 339 85 1959 1731 Thermal 1917 | . . . . 792 292 110 . 594 36 . . . 93 Explosive 1166 | . . . 435 . . . . . 731 . . . . Electromagnetic 545 | . . . . . . . . . 96 229 . 220 . Impact 179 | . . . . . . . . . . 120 59 . . Slashing 2499 | . . 44 . . . . 317 . . 520 208 944 466 Piercing 267 | . . . . . . . 267 . . . . . . Highest Corruption 6 | . . . . . . . 2 4 1 1 1 2 6 Average Corruption 1 | . . . . . . . 1 3 1 1 1 1 3 Corruption Purged . | . . . . . . . . . . . . . . Corruption Blocked . | . . . . . . . . . . . . . . Effects 70 | . . . . . . . 17 16 2 12 6 5 12 Message Errors 13 | . . . . . . . 2 1 1 2 3 1 3 Matter Fused 16 | . . . . . . . 3 4 . 1 1 3 4 Heat Flow Errors 13 | . . . . . . . 3 2 . 4 1 1 2 Energy Discharges 6 | . . . . . . . 2 2 . 1 . . 1 Parts Rejected 2 | . . . . . . . . 2 . . . . . Data Loss (minor) 11 | . . . . . . . 4 4 1 2 . . . Data Loss (major) 3 | . . . . . . . 2 . . . . . 1 Misfires 4 | . . . . . . . 1 1 . 1 1 . . Alerts 1 | . . . . . . . . . . 1 . . . Weapon Failures 1 | . . . . . . . . . . . . . 1 Overload Shots . | . . . . . . . . . . . . . . Overflow Damage 530 | . . . . . . 13 37 10 60 37 156 172 45 Projectiles 119 | . . . . . . 13 . 10 . . . 51 45 Explosions 61 | . . . . . . . . . 60 . . 1 . Melee 350 | . . . . . . . 37 . . 37 156 120 . Knockbacks 30 | . . . . . . 2 . . . . . 17 11 Impact . | . . . . . . . . . . . . . . Kinetic 28 | . . . . . . 2 . . . . . 16 10 Secondary 2 | . . . . . . . . . . . . 1 1 Self-Inflicted Damage 125 | . . . 30 . . . . . 58 . . . 37 Shots 3 | . . . 2 . . . . . 1 . . . . Rammed 21 | . . . . . . . . . . . . . 21 Targets Rammed 21 | . . . . . . . . . . . . . 21 Kicked . | . . . . . . . . . . . . . . Crushed . | . . . . . . . . . . . . . . Highest Temperature 416 | . . . . 239 390 299 198 416 42 142 98 81 188 Average Temperature 79 | . . . . 68 121 79 28 117 16 44 47 20 82 Received Heat Transfer 4307 | . . . 159 60 108 438 150 336 357 960 358 324 1057 Effects 2 | . . . . . . . . 2 . . . . . Energy Bleed 2 | . . . . . . . . 2 . . . . . Siege Activations . | . . . . . . . . . . . . . . Martial Activations . | . . . . . . . . . . . . . . Shielding Activations . | . . . . . . . . . . . . . . Robots Disrupted . | . . . . . . . . . . . . . . Combat Hostiles . | . . . . . . . . . . . . . . Robots Corrupted . | . . . . . . . . . . . . . . Combat Hostiles . | . . . . . . . . . . . . . . Parts Fried . | . . . . . . . . . . . . . . Impact Corruptions 2 | . . . . . . . . . . 2 . . . Robots Melted 1 | . . . . . . . . 1 . . . . . Combat Hostiles 1 | . . . . . . . . 1 . . . . . Parts Melted 16 | . . . . 2 2 . . 12 . . . . . Heat Transferred 4281 | . . . . 1178 555 250 . 2050 100 . . . 148 Parts Sabotaged . | . . . . . . . . . . . . . . Parts Stolen . | . . . . . . . . . . . . . . Parts Stripped . | . . . . . . . . . . . . . . Power Chain Reactions . | . . . . . . . . . . . . . . Alert | -11 -10 -10 -10 -8 -7 -7 -7 -7 -6 -6 -6 -5 -5 ------- Run | Yrd Mat Min Sub Mat Fac Gar Fac Gar Fac Low Low Fac Gar Maximum Alert Level 3 | . . . . . . 3 2 2 2 . . 1 2 Low Security (%) 71 | 100 100 100 . 100 100 17 72 25 81 . . 96 11 Level 1 14 | . . . . . . 12 23 49 15 . . 3 59 Level 2 9 | . . . . . . 38 4 24 2 . . . 28 Level 3 4 | . . . . . . 31 . . . . . . . Level 4 . | . . . . . . . . . . . . . . Level 5 . | . . . . . . . . . . . . . . High Security . | . . . . . . . . . . . . . . Max Security . | . . . . . . . . . . . . . . Peak Influence 975 | 5 130 4 . 100 40 975 443 478 413 . . 258 433 Initial 443 | . . 4 . . . . 443 37 217 . . 5 158 Average 162 | . 61 . . 29 3 535 153 267 133 . . 47 316 Influence Increases 4953 | 10 144 . 71 501 191 1045 380 521 635 300 65 665 425 Destroy 0b10 Robot/C 2860 | . 120 . 60 340 100 560 240 420 300 140 . 320 260 Destroy 0b10 Robot/NC 185 | 10 . . . 30 10 . 30 . 45 . 5 55 . Destroy Leader 510 | . 20 . 10 106 52 30 94 30 74 10 . 54 30 Allied During Kill 21 | . . . 1 . . 10 3 1 6 . . . . Successful Hack 101 | . 4 . . 14 28 24 12 . 12 . . 7 . Disable Machine 198 | . . . . 9 . . . . 135 . . 54 . Anti-Garrison Action 300 | . . . . . . 250 . 50 . . . . . Destroy Structure 193 | . . . . 2 1 36 1 5 48 . . 70 30 Lose Combat Pursuer 585 | . . . . . . 135 . 15 15 150 60 105 105 Influence Decreases 4520 | 10 130 14 71 501 191 70 1295 103 760 653 55 417 250 Entered New Map 1090 | . . 10 . . . . 532 23 261 159 . 5 100 Time Decay 2971 | 10 130 4 71 491 191 . 753 . 459 395 55 412 . Lost Part 349 | . . . . 10 . 30 10 20 40 99 . . 140 Lost Ally 110 | . . . . . . 40 . 60 . . . . 10 Squads Dispatched 19 | . . . . . 3 . 7 . 5 . . 4 . Investigation 5 | . . . . . 1 . 2 . 1 . . 1 . Extermination 7 | . . . . . 2 . 3 . 1 . . 1 . Reinforcement 6 | . . . . . . . 1 . 3 . . 2 . Assault . | . . . . . . . . . . . . . . Garrison 1 | . . . . . . . 1 . . . . . . Intercept . | . . . . . . . . . . . . . . Searches Triggered . | . . . . . . . . . . . . . . Construction Impeded . | . . . . . . . . . . . . . . Haulers Reinforced 2 | . . . . . . . . . 2 . . . . Active Scanning Responses . | . . . . . . . . . . . . . . Cargo Convoy Interrupts . | . . . . . . . . . . . . . . Stealth | -11 -10 -10 -10 -8 -7 -7 -7 -7 -6 -6 -6 -5 -5 --------- Run | Yrd Mat Min Sub Mat Fac Gar Fac Gar Fac Low Low Fac Gar Distress Signals 1 | . . . . . . . . . . . . 1 . Communications Jammed . | . . . . . . . . . . . . . . Distress Signals . | . . . . . . . . . . . . . . Times Spotted 229 | . 7 2 10 26 8 32 19 28 21 19 4 26 27 Peak Tracking Total 10 | . 4 2 2 5 1 5 5 9 6 4 4 6 10 Tactical Retreats 26 | . . . . . . 8 . 1 1 4 1 6 5 Traps | -11 -10 -10 -10 -8 -7 -7 -7 -7 -6 -6 -6 -5 -5 ------- Run | Yrd Mat Min Sub Mat Fac Gar Fac Gar Fac Low Low Fac Gar Traps Triggered 17 | . . . 2 2 . 1 6 1 . . . 4 1 Indirectly 1 | . . . . . . . . . . . . 1 . Trap Hack Attempts . | . . . . . . . . . . . . . . Triggered . | . . . . . . . . . . . . . . Disarmed . | . . . . . . . . . . . . . . Reprogrammed . | . . . . . . . . . . . . . . Reused . | . . . . . . . . . . . . . . Traps Extracted . | . . . . . . . . . . . . . . Installed . | . . . . . . . . . . . . . . Triggered . | . . . . . . . . . . . . . . Machines | -11 -10 -10 -10 -8 -7 -7 -7 -7 -6 -6 -6 -5 -5 ---------- Run | Yrd Mat Min Sub Mat Fac Gar Fac Gar Fac Low Low Fac Gar Machines Disabled 27 | . . . 1 1 . 3 . 1 15 . . 6 . Max in Single Turn 4 | . . . 1 1 . 1 . 1 4 . . 2 . Garrison Relay 4 | . . . . . . 3 . 1 . . . . . Machines Repaired . | . . . . . . . . . . . . . . Machines Dismantled . | . . . . . . . . . . . . . . Machines Sabotaged . | . . . . . . . . . . . . . . Overloaded Fab Kills . | . . . . . . . . . . . . . . Hacking | -11 -10 -10 -10 -8 -7 -7 -7 -7 -6 -6 -6 -5 -5 --------- Run | Yrd Mat Min Sub Mat Fac Gar Fac Gar Fac Low Low Fac Gar Machines Accessed 35 | . 1 . 1 7 6 2 8 . 5 1 . 3 1 Terminals 17 | . 1 . . 4 2 2 1 . 4 . . 2 1 Fabricators 5 | . . . . . 1 . 3 . 1 . . . . Repair Stations 2 | . . . . . 1 . 1 . . . . . . Recycling Units 1 | . . . . . . . 1 . . . . . . Scanalyzers 4 | . . . . 2 1 . 1 . . . . . . Garrison Access 4 | . . . . 1 1 . 1 . . . . 1 . Total Hacks 81 | . 3 . 9 24 15 3 13 . 6 1 . 6 1 Successful 52 | . 2 . 9 16 11 2 6 . 2 1 . 3 . Failed 28 | . 1 . . 7 4 1 7 . 4 . . 3 1 Catastrophic 7 | . . . . 1 1 . 2 . 2 . . 1 . Database Lockouts 1 | . . . . 1 . . . . . . . . . Manual 12 | . . . . 1 2 . 5 . 2 . . 2 . Terminals 34 | . 3 . . 10 6 3 1 . 5 . . 5 1 Fabricators 7 | . . . . . 1 . 5 . 1 . . . . Repair Stations 5 | . . . . . 4 . 1 . . . . . . Recycling Units 2 | . . . . . . . 2 . . . . . . Scanalyzers 17 | . . . . 11 3 . 3 . . . . . . Garrison Access 6 | . . . . 3 1 . 1 . . . . 1 . Terminal Hacks 26 | . 2 . 9 6 2 2 1 . 1 1 . 2 . Record 8 | . . . 8 . . . . . . . . . . Robot Analysis 2 | . . . . 2 . . . . . . . . . Open Door 1 | . . . . . . . . . . 1 . . . Open DSF 1 | . . . . . . . . . 1 . . . . Branch Access Points 2 | . . . . 1 1 . . . . . . . . Emergency Access Points 1 | . . . . . . 1 . . . . . . . Terminal Index 1 | . 1 . . . . . . . . . . . . Fabricator Index 1 | . . . . . . . . . . . . 1 . Recycling Unit Index 1 | . . . . 1 . . . . . . . . . Alert Level 1 | . . . . 1 . . . . . . . . . Zone Layout 5 | . 1 . . 1 1 . 1 . . . . 1 . Garrison Registry 1 | . . . . . . 1 . . . . . . . Proto ID Catalog 1 | . . . 1 . . . . . . . . . . Fabricator Hacks 2 | . . . . . . . 1 . 1 . . . . Load Schematic 1 | . . . . . . . 1 . . . . . . Build 1 | . . . . . . . . . 1 . . . . Repair Station Hacks 4 | . . . . . 4 . . . . . . . . Scan Component 2 | . . . . . 2 . . . . . . . . Repair 2 | . . . . . 2 . . . . . . . . Recycling Unit Hacks 1 | . . . . . . . 1 . . . . . . Report Inventory 1 | . . . . . . . 1 . . . . . . Scanalyzer 13 | . . . . 10 3 . . . . . . . . Insert Component 3 | . . . . 3 . . . . . . . . . Analyze 2 | . . . . 2 . . . . . . . . . Retrieve Study 8 | . . . . 5 3 . . . . . . . . Garrison Access Hacks 3 | . . . . . 1 . 1 . . . . 1 . Unlock Access 3 | . . . . . 1 . 1 . . . . 1 . Unauthorized Hacks 3 | . . . . . 1 . 2 . . . . . . Terminals 1 | . . . . . 1 . . . . . . . . Botnet 1 | . . . . . 1 . . . . . . . . Fabricators 1 | . . . . . . . 1 . . . . . . Liberate 1 | . . . . . . . 1 . . . . . . Repair Stations 1 | . . . . . . . 1 . . . . . . Patch 1 | . . . . . . . 1 . . . . . . Recycling Units . | . . . . . . . . . . . . . . Scanalyzers . | . . . . . . . . . . . . . . Garrison Access . | . . . . . . . . . . . . . . Data Cores Recovered 2 | . . . . 1 1 . . . . . . . . Used 1 | . . . . . 1 . . . . . . . . Hacking Detections 24 | . 1 . . 7 5 1 4 . 2 . . 3 1 Full Trace Events 3 | . . . . . 1 . . . 1 . . 1 . Feedback Events . | . . . . . . . . . . . . . . Feedback Blocked . | . . . . . . . . . . . . . . Robot Schematics Acquired . | . . . . . . . . . . . . . . Robots Built . | . . . . . . . . . . . . . . Authchips . | . . . . . . . . . . . . . . Time . | . . . . . . . . . . . . . . Total Robot Build Rating . | . . . . . . . . . . . . . . Part Schematics Acquired 2 | . . . . 2 . . . . . . . . . Parts Built 2 | . . . . . . . . . 2 . . . . Authchips . | . . . . . . . . . . . . . . Time 58 | . . . . . . . . . 58 . . . . Total Part Build Rating 14 | . . . . . . . . . 14 . . . . Part Studies Acquired 7 | . . . . 4 3 . . . . . . . . Parts Repaired 2 | . . . . . 2 . . . . . . . . Time 41 | . . . . . 41 . . . . . . . . Parts Recycled . | . . . . . . . . . . . . . . Recycled Matter . | . . . . . . . . . . . . . . Retrieved Matter . | . . . . . . . . . . . . . . Retrieved Components . | . . . . . . . . . . . . . . Parts Scanalyzed 2 | . . . . 2 . . . . . . . . . Part Schematics Acquired 2 | . . . . 2 . . . . . . . . . Parts Damaged . | . . . . . . . . . . . . . . Bothacking | -11 -10 -10 -10 -8 -7 -7 -7 -7 -6 -6 -6 -5 -5 ------------ Run | Yrd Mat Min Sub Mat Fac Gar Fac Gar Fac Low Low Fac Gar Used RIF Installer 3 | . . . . . . 1 . 1 . . . . 1 Hotswap 1 | . . . . . . . . 1 . . . . . Program Shield 1 | . . . . . . . . . . . . . 1 Robots Hacked 17 | . . . . . . . . 8 7 1 . 1 . Non-combat 5 | . . . . . . . . . 4 . . 1 . Combat 12 | . . . . . . . . 8 3 1 . . . Robot Hacks Applied 20 | . . . . . . . . 10 7 1 . 2 . parse_system 2 | . . . . . . . . . 1 . . 1 . no_distress 2 | . . . . . . . . . 1 . . 1 . block_reporting 1 | . . . . . . . . . 1 . . . . map_route 1 | . . . . . . . . . 1 . . . . find_shortcuts 1 | . . . . . . . . 1 . . . . . scatter_targeting 1 | . . . . . . . . 1 . . . . . overload_power 1 | . . . . . . . . 1 . . . . . amplify_resonance 1 | . . . . . . . . 1 . . . . . reboot_system 1 | . . . . . . . . 1 . . . . . overwrite_iff 7 | . . . . . . . . 4 2 1 . . . formatsys_high 2 | . . . . . . . . 1 1 . . . . Relay Couplers Released 12 | . . . . . . 9 . 3 . . . . . Machine Destruction 12 | . . . . . . 9 . 3 . . . . . Attached 5 | . . . . . . 2 . 1 2 . . . . Fabnet Peak Effective % . | . . . . . . . . . . . . . . Robots Rewired . | . . . . . . . . . . . . . . Allies Hacked . | . . . . . . . . . . . . . . Hacks Repelled . | . . . . . . . . . . . . . . Allies | -11 -10 -10 -10 -8 -7 -7 -7 -7 -6 -6 -6 -5 -5 -------- Run | Yrd Mat Min Sub Mat Fac Gar Fac Gar Fac Low Low Fac Gar Total Allies 17 | . . 3 . . . 2 3 5 3 1 . . . Largest Group 3 | . . 3 3 . . 2 3 1 2 . . . . Highest-Rated Group 157 | . . 40 40 . . 157 48 32 90 . . . . Highest-Rated Ally 95 | . . 16 16 . . 95 16 32 90 . . . . Total Orders 3 | . . . . . . . . 1 1 . . . 1 ROAM 1 | . . . . . . . . 1 . . . . . GUARD 1 | . . . . . . . . . 1 . . . . EXPLORE 1 | . . . . . . . . . . . . . 1 Ally Attacks 72 | . . . 17 . . 12 9 17 16 1 . . . Total Damage 1611 | . . . 172 . . 548 129 332 412 18 . . . Kills 16 | . . . 1 . . 5 2 2 6 . . . . Allies Corrupted 1 | . . . . . . . . . 1 . . . . Allies Melted . | . . . . . . . . . . . . . . Intel | -11 -10 -10 -10 -8 -7 -7 -7 -7 -6 -6 -6 -5 -5 ------- Run | Yrd Mat Min Sub Mat Fac Gar Fac Gar Fac Low Low Fac Gar Active Infowar (turns) 9570 | 15 295 305 3266 637 . 791 . 655 966 1371 538 721 10 IFF 731 | . . . . . . . . . . . . 721 10 Terrain 468 | . . . 468 . . . . . . . . . . Traps 3530 | . . . . . . . . 655 966 1371 538 . . Seismic 4050 | 15 295 305 2798 637 . . . . . . . . . Spoofing 791 | . . . . . . 791 . . . . . . . Robot Analysis Total 2 | . . . . 2 . . . . . . . . . Derelict Logs Recovered 6 | . . . 3 . . . . . . 1 2 . . Drone Launches 2 | . . . . . . . . . . . . . 2 Drone Recoveries 1 | . . . . . . . . . . . . . 1 Exploration | -11 -10 -10 -10 -8 -7 -7 -7 -7 -6 -6 -6 -5 -5 ------------- Run | Yrd Mat Min Sub Mat Fac Gar Fac Gar Fac Low Low Fac Gar Turns Passed 15612 | 98 295 305 3395 1501 1374 1408 1718 805 966 1371 673 1196 507 Spaces Moved 8127 | 57 202 213 1376 574 902 1024 1331 474 597 583 182 412 200 Core 252 | 11 5 . . . . . . . . 42 136 . 58 Treads 1203 | . . . . 310 341 . . . . . 46 412 94 Legs 6666 | 46 191 213 1376 264 561 1024 1331 474 597 541 . . 48 Wheels . | . . . . . . . . . . . . . . Hover . | . . . . . . . . . . . . . . Flight 6 | . 6 . . . . . . . . . . . . Fastest Speed 50 | 50 117 120 120 160 116 116 116 116 108 97 50 160 50 Average Speed 165 | 106 121 120 237 222 136 116 116 119 121 213 355 231 133 Slowest Speed 950 | 120 200 120 750 750 195 116 117 122 190 850 950 240 245 Overloaded Moves . | . . . . . . . . . . . . . . Propulsion Burnouts . | . . . . . . . . . . . . . . Robots Hopped . | . . . . . . . . . . . . . . Potential Cave-ins . | . . . . . . . . . . . . . . Cave-ins Triggered . | . . . . . . . . . . . . . . Exploration Rate (%) 37 | 3 31 35 81 47 21 75 25 43 20 68 25 10 38 Regions Visited 13 Branch Regions 4 Pre-discovered Areas 3 | . . . 1 . . . . . . . 2 . . Known Exits Taken 3 | . . . . . 1 . 1 . . . . 1 . Unknown Exits Taken 8 | 1 1 1 1 1 . . . . 1 1 1 . . Scrap Searched 11 | . . 1 8 . . . . . . 1 1 . . Spaces Dug 5 | . . . . 1 . . . . . . . 3 1 Terrain Destroyed 187 | . . . 84 1 . 1 . . 50 1 . 34 16 Melee 1 | . . . . 1 . . . . . . . . . Projectile 52 | . . . . . . 1 . . . 1 . 34 16 AOE 134 | . . . 84 . . . . . 50 . . . . Terrain Rammed . | . . . . . . . . . . . . . . Walls Destroyed . | . . . . . . . . . . . . . . Machines Disabled . | . . . . . . . . . . . . . . Actions | -11 -10 -10 -10 -8 -7 -7 -7 -7 -6 -6 -6 -5 -5 --------- Run | Yrd Mat Min Sub Mat Fac Gar Fac Gar Fac Low Low Fac Gar Total 9431 | 80 234 240 1458 728 1012 1138 1426 613 759 654 194 551 344 Wait 375 | . . 7 25 37 57 3 7 27 91 16 . 46 59 Move 8116 | 56 201 212 1375 573 901 1023 1331 473 596 582 181 412 200 Hop . | . . . . . . . . . . . . . . Pick Up 114 | 9 10 3 7 19 7 16 8 16 3 2 . 14 . Fast Attach 72 | . . . 1 11 6 6 12 4 5 7 4 12 4 Attach 48 | 7 4 . 1 9 3 . 1 4 3 7 1 4 4 Detach 9 | . 2 . . 2 2 . . . 1 1 . 1 . Swap 83 | . 1 4 9 13 7 6 7 11 13 2 . 6 4 Drop 103 | . 5 3 6 23 11 23 9 15 5 . . 3 . Fire 392 | 8 11 2 25 40 18 58 38 62 42 21 3 30 34 Melee 98 | . . 9 9 1 . 3 13 1 . 16 5 23 18 Ram 19 | . . . . . . . . . . . . . 19 Kick . | . . . . . . . . . . . . . . Crush 2 | . . . . . . . . . . . . . 2 Escape Stasis . | . . . . . . . . . . . . . . Rewire . | . . . . . . . . . . . . . . Trap . | . . . . . . . . . . . . . . Miscellaneous . | . . . . . . . . . . . . . . Route ------- -11/Scrapyard -10/Materials -10/Mines -10/Subcaves -8/Materials -7/Factory (discovered 6 exits: *Fac x3 / Low x2 / Gar) -7/Garrison (discovered 3 exits: *Fac x3) -7/Factory (discovered 2 exits: *Low / Gar) -7/Garrison -6/Factory (discovered 2 exits: *Fac / *Low) -6/Lower Caves -6/Lower Caves -5/Factory (discovered 3 exits: [*Upp] / Ext / Gar) -5/Garrison History --------- Turn | Location | Event 5 | -11/Scrapyard | Discovered new exit (range 13) 99 | -11/Scrapyard | Entered Materials 295 | -10/Materials | Discovered new exit (range 16) 307 | -10/Materials | Build established: Mutant 394 | -10/Materials | Entered Mines 412 | -10/Mines | Assisted by bots powering up and referring to "LRC-V3" 485 | -10/Mines | Joined a pair of Derelicts in attacking an 0b10 outpost 577 | -10/Mines | Discovered new exit (range 8) 611 | -10/Mines | Excavation squad dispatched 611 | -10/Mines | A large section of the Mines collapsed 699 | -10/Mines | Entered Subcaves 699 | -10/Subcaves | Accompanied by 3 allies 847 | -10/Subcaves | A swath of the cavern ceiling suddenly collapsed 1174 | -10/Subcaves | Learned 2 Materials zone layouts 1574 | -10/Subcaves | Core integrity fell below 50% 1672 | -10/Subcaves | Shifting Twisted Machinery released Sub. Beam Cannon 1729 | -10/Subcaves | Shifting Twisted Machinery released Sub. Beam Cannon 1735 | -10/Subcaves | Shifting Twisted Machinery released Battle Rifle 1767 | -10/Subcaves | Shifting Twisted Machinery released Hvy. Riot Gun 1767 | -10/Subcaves | Shifting Twisted Machinery released Sub. Shrapnel Launcher 1843 | -10/Subcaves | Learned Materials terminal intel 2638 | -10/Subcaves | Shifting Twisted Machinery released Flamer 3080 | -10/Subcaves | Visited 4L-MR0's lab 3116 | -10/Subcaves | Found Cargo Legs 4064 | -10/Subcaves | Discovered new exit (range 4) 4072 | -10/Subcaves | Learned location of Zion (-6) 4094 | -10/Subcaves | Entered Materials 4094 | -8/Materials | Evolved 4 slots: Propulsion x1, Utility x2, Weapon x1 4096 | -8/Materials | Loaded intel: 12 terminal locations 4837 | -8/Materials | Central database locked down 4972 | -8/Materials | Build established: Scavenger-Gunner 5574 | -8/Materials | Discovered new exit (range 4) 5595 | -8/Materials | Entered Factory 5595 | -7/Factory | Evolved 2 slots: Propulsion x1, Utility x1 5702 | -7/Factory | Identified exit to Lower Caves 6112 | -7/Factory | Discovered new exit (range 15) 6161 | -7/Factory | Attached Cargo Legs, gained temporary slots: Utility x2 6458 | -7/Factory | Build established: Hacker-Gunner 6531 | -7/Factory | Repaired Imp. Titanium Leg 6556 | -7/Factory | Repaired Lgt. Nuclear Core+ 6642 | -7/Factory | Discovered new exit (range 9) 6758 | -7/Factory | Discovered new exit (range 9) 6851 | -7/Factory | Identified exit to Factory 6965 | -7/Factory | Identified exit to Garrison 6969 | -7/Factory | Entered Garrison 7003 | -7/Garrison | Triggered checkpoint 7154 | -7/Garrison | Found embedded Infiltrators 7213 | -7/Garrison | Triggered checkpoint 7344 | -7/Garrison | Triggered checkpoint 7371 | -7/Garrison | Triggered checkpoint 7544 | -7/Garrison | Discovered new exit (range 12) 7589 | -7/Garrison | Triggered checkpoint 7662 | -7/Garrison | Discovered new exit (range 7) 7662 | -7/Garrison | Discovered new exit (range 92) 7662 | -7/Garrison | Discovered new exit (range 41) 7666 | -7/Garrison | Build established: Gunner 7803 | -7/Garrison | Triggered checkpoint 7895 | -7/Garrison | Installed Relay Interface Framework 7925 | -7/Garrison | Triggered checkpoint 7940 | -7/Garrison | Garrison Relay disabled 8044 | -7/Garrison | Garrison Relay disabled 8176 | -7/Garrison | Garrison Relay disabled 8274 | -7/Garrison | Identified exit to Factory 8375 | -7/Garrison | Build established: Mutant 8377 | -7/Garrison | Entered Factory 8531 | -7/Factory | Discovered exit to Lower Caves (range 15) 8690 | -7/Factory | Build established: Scavenger-Gunner 9114 | -7/Factory | Build established: Gunner 9650 | -7/Factory | Build established: Mutant 10039 | -7/Factory | Garrison activated, responded to threat 10095 | -7/Factory | Identified exit to Garrison 10095 | -7/Factory | Entered Garrison 10148 | -7/Garrison | Triggered checkpoint 10469 | -7/Garrison | Build established: Bothacker-Gunner 10491 | -7/Garrison | Triggered checkpoint 10559 | -7/Garrison | Triggered checkpoint 10615 | -7/Garrison | Triggered checkpoint 10683 | -7/Garrison | Triggered checkpoint 10703 | -7/Garrison | Garrison Relay disabled 10814 | -7/Garrison | Discovered exit to Factory (range 15) 10851 | -7/Garrison | Expanded RIF knowledge: Hotswap 10900 | -7/Garrison | Entered Factory 10900 | -6/Factory | Evolved 2 slots: Utility x2 11034 | -6/Factory | Identified exit to DSF 11464 | -6/Factory | Fabricated Imp. Force Field (x2) 11525 | -6/Factory | Discovered new exit (range 6) 11789 | -6/Factory | Discovered new exit (range 15) 11866 | -6/Factory | Entered Lower Caves 12209 | -6/Lower Caves | Learned location of 1 exit from Factory 12280 | -6/Lower Caves | Lost 6 parts (2n1u3w) 12497 | -6/Lower Caves | Build established: Bothacker-Mutant 12585 | -6/Lower Caves | Lost 3 parts (1p2w) 12832 | -6/Lower Caves | Attracted the attention of an 0b10 checkpoint 12863 | -6/Lower Caves | Core integrity fell below 50% 12905 | -6/Lower Caves | Discovered new exit (range 5) 12913 | -6/Lower Caves | Lost 8 parts (1p4n1u2w) 13237 | -6/Lower Caves | Entered another Lower Caves area 13788 | -6/Lower Caves | Core integrity fell below 20% 13796 | -6/Lower Caves | Released all parts (4) 13824 | -6/Lower Caves | Learned location of Extension (-5) 13827 | -6/Lower Caves | Lost 5 parts (2u3w) 13854 | -6/Lower Caves | Discovered new exit (range 7) 13910 | -6/Lower Caves | Entered Factory 13910 | -5/Factory | Evolved 2 slots: Utility x1, Weapon x1 13911 | -5/Factory | Identified exit to Extension 14079 | -5/Factory | Discovered new exit (range 9) 14871 | -5/Factory | Build established: Tank 15106 | -5/Factory | Identified exit to Garrison 15106 | -5/Factory | Entered Garrison 15144 | -5/Garrison | Triggered checkpoint 15288 | -5/Garrison | Spotted B-75 Beast 15317 | -5/Garrison | Destroyed B-75 Beast 15470 | -5/Garrison | Lost 8 parts (4n2u2w) 15560 | -5/Garrison | Released all parts (2) 15567 | -5/Garrison | Triggered checkpoint 15568 | -5/Garrison | Core integrity fell below 50% 15571 | -5/Garrison | Expanded RIF knowledge: Program Shield 15588 | -5/Garrison | Triggered checkpoint 15591 | -5/Garrison | Lost 6 parts (1p1n3u1w) 15600 | -5/Garrison | Core integrity fell below 20% 15613 | -5/Garrison | Destroyed by C-35 Carver with Carbide Saw Last Messages --------------- 15560_ Released Lrg. Storage Unit. 15560_ Released Wave Gun. 15561_ Acquired 32 matter. 15567_ 4KMF D8W7RQZ4>CW 15569_ Triggered Alarm Trap. 15569_ An alarm sounds. Initiating installation procedure... 15571_ Expanded RIF knowledge: Program Shield. 15572_ Slammed into C-35 Carver. 15574_ Med. Treads severed. 15585_ System corrupted: Substantial component data lost. 15586_ Slammed into C-35 Carver. 15591_ Slammed into L-41 Fighter. 15594_ Destabilizing: System corrupted (+1). 15594_ Critical hit (Burn: +37). 15596_ Slammed into L-41 Fighter. 15597_ Slammed into G-50 Soldier. 15604_ Slammed into C-35 Carver. Map ----- +----------------------------------------------------+ | ?????????????????????????????????????????????????? | | ?????????????????????????????????????????????????? | | ?????????????????????????????????????????????????? | | ?????????????????????????????????????????????????? | | ?????????????????????????????????????????????????? | | ?????????????????????????????????????????????????? | | ?????????????????????????????????????????????????? | | ?????????????????????????????????????????????????? | | ????????????????? ??????????????????????????????? | | ????????????????? ??????????????????????????????? | | ????????????????? ??????????????????????????????? | | ????????????????? #?????????????????????????????? | | ????????????????# #?????????????????????????????? | | ???????????????## ##""""######??????????????????? | | ?????????????"## ###????????????????? | | ?????????????? # ?????????????????? | | ??????????????#; ?????????????????? | | ???????????????#%% ## ## #??????????????????? | | ?????????????### ## ## ###????????????????? | | ?????????????# #????????????????? | | ?????????????# #????????????????? | | ?????????????# ! #????????????????? | | ?????????????# * ???????????????#?? | | ??????????????## ## ## #???????????????# ?? | | ?????########## ## ;# #??????????????? ?? | | ?????# c c c@ #??????????????? #? | | ?????# % [* + ??####?????? #? | | ?????# ########g%g !]!=#????## ??????# #? | | ???????????????##%### ##= ##????# ##?????# #? | | ????????????????#%#?# ##!=#?????# #?????# ## | | ????????????????#%#?#######/=#?????? #?????# | | ?????# #########%#???????#!=#???????# #??????# ? | | ?????# + %#???????#!!#???????# ######?# ? | | ?????# ## ###### #???????#!!#???????# ## ??# #? | | ?????????# #???## ##??????#/!##??????# ## #???# #? | | ?????????# #???# #??????# "######## #!"#???#%#? | | ?????????# #???#"="#??????# * #???#%#? | | ?????????# #???#" "#??????#! ^ #####=## | | ????????## #???#" "#??????#++########T## ^** ^" | | ????????# #???#"""#??????#=!"#?????#### #####"## | | ????????## #???#####????###![|######???# #???# "# | | ?????????# #????????????#""%[*! ""#???# #??## # | | ?????????# #????????????#"!=* !"#???# #??# ## | | ?????????# #????????????#"![ !"#???# #### #? | | ?????????#+#????????????#"! !"#???# #####? | | ????????? ????????????#"! !"#???# #????? | | ????????? ????????????#"! !"#???# #????? | | ????????? ????????????#"! !"#???######????? | | ?????????###????????????#"" "#?????????????? | | ????????????????????????#"""!!!!" "#?????????????? | +----------------------------------------------------+ Best States ------------- Heat Dissipation 59 Energy Generation 19 Energy Capacity 550 Matter Stores 300 Matter Capacity 300 Sight Range 16 Terrain Scan Range 16 Terrain Scan Density 10 Additional Mass Support 9 Armor Coverage 600 Resistance: KI 20 Resistance: TH 20 Resistance: EX 20 Resistance: EM 20 Resistance: I 20 Resistance: S 20 Resistance: P 20 Utility Shielding 90 Evasion (%) 55 Targeting Accuracy 6 Recoil Reduction 8 Particle Charging 15 Offensive Hacking 10 Defensive Hacking 10 Relay Coupler Types 2 Relay Coupler Value 78 Item Schematics ----------------- Hrd. Medium Armor Plating | -8/Materials | Scanalyzed Huge Storage Unit | -8/Materials | Scanalyzed Robot Schematics ------------------ None Fabricated ------------ Imp. Force Field | x2 | -6/Factory | Preloaded Repaired ---------- Imp. Titanium Leg | 25% | -7/Factory Lgt. Nuclear Core | 30% | -7/Factory Studied --------- Lgt. Assault Rifle | -8/Materials | Hacked Autogun | -8/Materials | Hacked Aluminum Leg | -8/Materials | Hacked Lgt. Nuclear Core | -8/Materials | Hacked Gauss Rifle | -7/Factory | Hacked Imp. Titanium Leg | -7/Factory | Hacked Carbon-fiber Leg | -7/Factory | Hacked Alien Tech Used ----------------- None Achievements -------------- Mistaken Identity Satisfying Challenges ------------ None Game ------ Seed RingMakeshiftProtection Manual? 0 Play Time 02:15:33 Cumulative 194.3 hours Start 2026.09.17 @ 21:12:07 End 2026.09.17 @ 23:54:46 Sessions 1 Manual Loads 0 Difficulty Adventurer Special Mode None Game No. 15 Rogue 0 Adventurer 1 Explorer 14 Win Type - Total 7 Types 4/0/1/0/0/0/0/0/0/2 Lore% 43 Gallery% 45 Achievement% 48 Wizard Run 0 Options --------- Layout 0 ASCII 0 Keyboard 0 Movement Mouse Keybinds 0 Fullscreen 1 Font 18/Cog Map View 76x50 Zoom Use 1% Tactical HUD 1 Map Filters NONE Filters NONE Steam 1 RUN: 9a402e41-ecc0-40e6-8f08-54499564b7eb